bitfinex-derivatives/quotes_BNBF0:USTF0_20250710
["timestamp","ask_amount","ask_price","bid_price","bid_amount"]
[1752190648939,0.2541361,684.86,683.98,1.87935466]
[1752190649139,0.2541361,684.86,683.99,1.87935466]
[1752190649339,0.2541361,684.86,684.0,1.87935466]
[1752190649544,0.2541361,684.86,684.01,1.87935466]
[1752190649741,0.2541361,684.86,684.02,1.87935466]
[1752190649940,0.2541361,684.86,684.03,1.87935466]
[1752190650147,0.2541361,684.86,684.04,1.87935466]
[1752190650345,0.2541361,684.86,684.05,1.87935466]
[1752190650543,0.2541361,684.86,684.06,1.87935466]
[1752190650738,0.2541361,684.86,684.07,1.87935466]
[1752190651041,0.2541361,684.86,684.08,1.87935466]
[1752190651240,0.2541361,684.86,684.09,1.87935466]
[1752190651441,0.2541361,684.86,684.1,1.87935466]
[1752190651639,0.2541361,684.86,684.11,1.87935466]
[1752190651840,0.2541361,684.86,684.12,1.87935466]
[1752190652041,0.2541361,684.86,684.13,1.87935466]
[1752190652241,0.2541361,684.86,684.14,1.87935466]
[1752190652440,0.2541361,684.86,684.15,1.87935466]
[1752190652645,0.2541361,684.86,684.16,1.87935466]
[1752190652845,0.2541361,684.86,684.17,1.87935466]
[1752190653043,0.2541361,684.86,684.18,1.87935466]
[1752190653343,0.2541361,684.86,684.19,1.87935466]
[1752190653540,0.2541361,684.86,684.2,1.87935466]
[1752190653742,0.2541361,684.86,684.21,1.87935466]
[1752190653944,0.2541361,684.86,684.22,1.87935466]
[1752190654144,0.2541361,684.86,684.23,1.87935466]
[1752190654341,0.2541361,684.86,684.24,1.87935466]
[1752190654643,0.2541361,684.86,684.25,1.87935466]
[1752190654843,0.2541361,684.86,684.26,1.87935466]
[1752190655144,0.2541361,684.86,684.27,1.87935466]
[1752190655345,0.2541361,684.86,684.28,1.87935466]
[1752190655548,0.2541361,684.86,684.29,1.87935466]
[1752190655743,0.2541361,684.86,684.3,1.87935466]
[1752190655942,0.2541361,684.86,684.31,0.97955438]
[1752190656146,0.2541361,684.86,684.32,0.97955438]
[1752190656344,0.2541361,684.86,683.96,0.98463874]
[1752190656548,0.2541361,684.86,683.98,0.98463874]
[1752190656747,0.2541361,684.86,683.99,1.87794047]
[1752190657048,0.2541361,684.86,684.0,1.87794047]
[1752190657249,0.2541361,684.86,684.01,1.87794047]
[1752190657450,0.2541361,684.86,684.02,1.87794047]
[1752190657750,0.2541361,684.86,684.03,1.87794047]
[1752190657955,0.2541361,684.86,684.04,1.87794047]
[1752190658149,0.2541361,684.86,684.05,1.87794047]
[1752190658352,0.2541361,684.86,684.06,1.87794047]
[1752190658546,0.2541361,684.86,684.07,1.87794047]
[1752190658751,0.2541361,684.86,684.08,1.87794047]
[1752190658951,0.2541361,684.86,684.09,1.87794047]
[1752190659151,0.2541361,684.86,684.1,1.87794047]
[1752190659352,0.2541361,684.86,684.11,1.87794047]
[1752190659547,0.2541361,684.86,684.12,1.87794047]
[1752190659850,0.2541361,684.86,684.13,1.87794047]
[1752190660048,0.2541361,684.86,684.14,1.87794047]
[1752190660250,0.2541361,684.86,684.15,1.87794047]
[1752190660456,0.2541361,684.86,684.16,1.87794047]
[1752190660648,0.2541361,684.86,684.17,1.87794047]
[1752190660849,0.2541361,684.86,684.18,1.87794047]
[1752190661050,0.2541361,684.86,684.19,1.87794047]
[1752190661257,0.2541361,684.86,684.2,1.87794047]
[1752190661554,0.2541361,684.86,684.21,1.87794047]
[1752190661751,0.2541361,684.86,684.22,1.87794047]
[1752190661951,0.2541361,684.86,684.23,1.87794047]
[1752190662152,0.2541361,684.86,684.24,1.87794047]
[1752190662354,0.2541361,684.86,684.25,1.87794047]
[1752190662550,0.2541361,684.86,684.26,1.87794047]
[1752190662755,0.2541361,684.86,684.27,1.87794047]
[1752190662956,0.2541361,684.86,684.28,1.87794047]
[1752190663152,0.2541361,684.86,684.29,0.97881674]
[1752190663453,0.2541361,684.86,683.97,0.98463874]
[1752190663753,0.2541361,684.86,683.98,1.8774038]
[1752190664052,0.2541361,684.86,683.99,1.8774038]
[1752190664256,0.2541361,684.86,684.0,1.8774038]
[1752190664456,0.2541361,684.86,684.01,1.8774038]
[1752190664656,0.2541361,684.86,684.02,1.8774038]
[1752190664952,0.2541361,684.86,684.03,1.8774038]
[1752190665158,0.2541361,684.86,684.04,1.87736918]
[1752190665354,0.2541361,684.86,684.05,1.87736918]
[1752190665551,0.2541361,684.86,684.06,1.87736918]
[1752190665852,0.2541361,684.86,684.07,1.87736918]
[1752190666053,0.2541361,684.86,684.08,1.87736918]
[1752190666357,0.2541361,684.86,684.09,1.87736918]
[1752190666658,0.2541361,684.86,684.1,1.87736918]
[1752190666953,0.2541361,684.86,684.11,1.87736918]
[1752190667253,0.2541361,684.86,684.12,1.87736918]
[1752190667458,0.2541361,684.86,684.13,1.87736918]
[1752190667753,0.2541361,684.86,684.14,1.87736918]
[1752190667958,0.2541361,684.86,684.15,1.87736918]
[1752190668257,0.2541361,684.86,684.16,1.87736918]
[1752190668453,0.2541361,684.86,684.17,1.87736918]
[1752190668757,0.2541361,684.86,684.18,1.87736918]
[1752190669054,0.2541361,684.86,684.19,1.87736918]
[1752190669257,0.2541361,684.86,684.2,1.87736918]
[1752190669454,0.2541361,684.86,684.21,1.87736918]
[1752190669657,0.2541361,684.86,684.22,1.87736918]
[1752190669957,0.2541361,684.86,684.23,1.87736918]
[1752190670256,0.2541361,684.86,684.24,0.97853404]
[1752190670454,0.2541361,684.86,683.95,0.2541361]
[1752190670654,0.2541361,684.86,683.96,1.8765649]
[1752190670857,0.2541361,684.86,683.97,1.8765649]
[1752190671052,0.2541361,684.86,683.98,1.8765649]
[1752190671253,0.2541361,684.86,683.99,1.8765649]
[1752190671453,0.2541361,684.86,684.0,1.8765649]
[1752190671652,0.2541361,684.86,684.01,1.8765649]
[1752190671854,0.2541361,684.86,684.02,1.8765649]
[1752190672054,0.2541361,684.86,684.03,1.8765649]
[1752190672256,0.2541361,684.86,684.04,1.8765649]
[1752190672558,0.2541361,684.86,684.05,1.8765649]
[1752190672755,0.2541361,684.86,684.06,1.8765649]
[1752190673056,0.2541361,684.86,684.07,1.8765649]
[1752190673260,0.2541361,684.86,684.08,1.8765649]
[1752190673455,0.2541361,684.86,684.09,1.8765649]
[1752190673657,0.2541361,684.86,684.1,1.8765649]
[1752190673856,0.2541361,684.86,684.11,1.8765649]
[1752190674058,0.2541361,684.86,684.12,1.8765649]
[1752190674255,0.2541361,684.86,684.13,1.8765649]
[1752190674554,2.21328453,684.86,684.14,1.8765649]
[1752190674756,2.21328453,684.86,684.15,1.8765649]
[1752190674956,1.95914843,684.85,684.16,1.8765649]
[1752190675155,1.95914843,684.84,684.17,1.8765649]
[1752190675358,1.95914843,684.83,684.18,1.8765649]
[1752190675554,0.2541361,684.86,684.19,1.8765649]
[1752190675762,0.2541361,684.86,684.2,1.8765649]
[1752190675958,0.2541361,684.86,684.21,1.8765649]
[1752190676254,0.2541361,684.86,684.22,1.8765649]
[1752190676558,0.2541361,684.86,684.23,0.97839298]
[1752190676756,0.2541361,684.86,684.24,0.97839298]
[1752190676954,0.2541361,684.86,684.25,0.97839298]
[1752190677159,0.2541361,684.86,683.79,0.98508126]
[1752190677360,0.2541361,684.86,683.8,1.87621478]
[1752190677660,0.2541361,684.86,683.81,1.87621478]
[1752190677856,0.2541361,684.86,683.82,1.87621478]
[1752190678160,0.2541361,684.86,683.83,1.87621478]
[1752190678463,0.2541361,684.86,683.84,1.87621478]
[1752190678756,0.2541361,684.86,683.85,1.87621478]
[1752190678959,0.2541361,684.86,683.86,1.87621478]
[1752190679157,0.2541361,684.86,683.87,1.87621478]
[1752190679358,0.2541361,684.86,683.88,1.87621478]
[1752190679556,0.2541361,684.86,683.89,1.87621478]
[1752190679756,0.2541361,684.86,683.9,1.87621478]
[1752190679960,0.2541361,684.86,683.91,1.87621478]
[1752190680258,0.2541361,684.86,683.92,1.87621478]
[1752190680458,0.2541361,684.86,683.93,1.87621478]
[1752190680658,0.2541361,684.86,683.94,1.87621478]
[1752190680964,0.2541361,684.86,683.95,1.87621478]
[1752190681263,0.2541361,684.86,683.96,1.87621478]
[1752190681464,0.2541361,684.86,683.97,1.87621478]
[1752190681660,0.2541361,684.86,683.98,1.87621478]
[1752190681860,0.2541361,684.86,683.99,1.87621478]
[1752190682166,0.2541361,684.86,684.0,1.87621478]
[1752190682461,0.2541361,684.86,684.01,1.87621478]
[1752190682668,0.2541361,684.86,684.02,1.87621478]
[1752190682864,0.2541361,684.86,684.03,1.87621478]
[1752190683061,0.2541361,684.86,684.04,1.87621478]
[1752190683265,0.2541361,684.86,684.05,1.87621478]
[1752190683466,0.2541361,684.86,684.06,1.87621478]
[1752190683664,0.2541361,684.86,684.07,1.87621478]
[1752190683960,0.2541361,684.86,684.08,1.87621478]
[1752190684161,0.2541361,684.86,684.09,1.87621478]
[1752190684362,0.2541361,684.86,684.1,1.87621478]
[1752190684562,0.2541361,684.86,684.11,0.97813237]
[1752190684762,0.2541361,684.86,684.12,0.97813237]
[1752190684962,0.2541361,684.86,684.13,0.97813237]
[1752190685166,0.2541361,684.86,684.14,0.97813237]
[1752190685363,1.95914843,684.83,684.15,0.97813237]
[1752190685566,1.95914843,684.81,684.16,0.97813237]
[1752190685763,1.95914843,684.82,684.17,0.97813237]
[1752190685969,2.21328453,684.86,684.18,0.97813237]
[1752190686167,2.21328453,684.86,684.19,0.97813237]
[1752190686464,1.95914843,684.85,684.2,0.97813237]
[1752190686668,1.95914843,684.85,684.08,0.953]
[1752190686868,1.95914843,684.85,684.09,0.97798796]
[1752190687067,1.95914843,684.85,684.1,0.97798796]
[1752190687268,1.95914843,684.85,684.11,0.97798796]
[1752190687568,1.95914843,684.85,684.12,0.97798796]
[1752190687768,1.95914843,684.85,684.13,0.97798796]
[1752190688068,1.95914843,684.85,684.14,0.97798796]
[1752190688376,2.21328453,684.86,684.15,0.97798796]
[1752190688671,1.95914843,684.85,684.16,0.97798796]
[1752190688865,0.2541361,684.86,684.08,0.953]
[1752190689068,0.2541361,684.86,684.09,0.97809952]
[1752190689363,0.2541361,684.86,684.1,0.97809952]
[1752190689568,0.2541361,684.86,684.11,0.97809952]
[1752190689764,0.2541361,684.86,684.12,0.97809952]
[1752190689971,0.2541361,684.86,684.13,0.97809952]
[1752190690171,0.2541361,684.86,684.14,0.97809952]
[1752190690367,0.2541361,684.86,684.08,0.953]
[1752190690569,0.2541361,684.86,684.09,0.97783186]
[1752190690772,0.2541361,684.86,684.1,0.97783186]
[1752190690970,0.2541361,684.86,684.11,0.97783186]
[1752190691169,0.2541361,684.86,684.08,0.953]
[1752190691369,1.95914843,684.8,684.08,0.953]
[1752190691573,1.95914843,684.84,684.08,0.953]
[1752190692171,2.21328453,684.86,684.08,0.953]
[1752190692570,0.2541361,684.86,684.08,0.953]
[1752190694577,1.95914843,684.85,684.08,0.953]
[1752190694777,0.2541361,684.86,684.08,0.953]
[1752190701480,2.21328453,684.86,684.08,0.953]
[1752190703382,1.95914843,684.85,684.08,0.953]
[1752190704082,1.95914843,684.83,684.08,0.953]
[1752190704782,1.95914843,684.75,684.08,0.953]
[1752190705684,1.95914843,684.72,684.08,0.953]
[1752190705883,0.2541361,684.86,684.09,0.9772106]
[1752190706084,0.2541361,684.86,684.1,0.9772106]
[1752190706287,0.2541361,684.86,684.11,0.9772106]
[1752190706485,0.2541361,684.86,684.12,0.9772106]
[1752190706686,0.2541361,684.86,684.13,0.9772106]
[1752190706889,0.2541361,684.86,684.08,0.953]
[1752190707088,0.2541361,684.86,684.09,0.97724758]
[1752190707294,0.2541361,684.86,684.1,0.97724758]
[1752190707487,0.2541361,684.86,684.11,0.97724758]
[1752190707691,0.2541361,684.86,684.12,0.97724758]
[1752190707891,0.2541361,684.86,684.13,0.97724758]
[1752190708193,0.2541361,684.86,684.08,0.953]
[1752190708393,0.2541361,684.86,684.09,0.97726445]
[1752190708592,0.2541361,684.86,684.1,0.97726445]
[1752190708793,0.2541361,684.86,684.11,0.97726445]
[1752190709089,0.2541361,684.86,684.12,0.97726445]
[1752190709290,0.2541361,684.86,684.13,0.97726445]
[1752190709488,0.2541361,684.86,684.08,0.953]
[1752190709692,0.2541361,684.86,684.09,0.97724834]
[1752190709893,0.2541361,684.86,684.1,0.97724834]
[1752190710190,0.2541361,684.86,684.08,0.953]
[1752190711794,1.95914843,684.81,684.08,0.953]
[1752190711994,1.95914843,684.74,684.08,0.953]
[1752190715597,1.95914843,684.73,684.08,0.953]
[1752190715794,1.95914843,684.74,684.08,0.953]
[1752190716294,1.95914843,684.69,684.08,0.953]
[1752190716697,1.95914843,684.7,684.08,0.953]
[1752190717397,1.95914843,684.69,684.08,0.953]
[1752190717598,1.95914843,684.75,684.08,0.953]
[1752190718401,1.95914843,684.74,684.08,0.953]
[1752190719396,1.95914843,684.73,684.08,0.953]
[1752190719696,1.95914843,684.74,684.08,0.953]
[1752190720406,1.95914843,684.73,684.08,0.953]
[1752190720801,1.95914843,684.75,684.08,0.953]
[1752190721901,1.95914843,684.73,684.08,0.953]
[1752190722208,1.95914843,684.79,684.08,0.953]
[1752190722806,1.95914843,684.83,684.08,0.953]
[1752190723406,1.95914843,684.82,684.08,0.953]
[1752190724308,2.21328453,684.86,684.09,0.89802909]
[1752190724511,2.21328453,684.86,684.08,0.953]
[1752190724708,2.21328453,684.86,684.09,0.89799642]
[1752190724911,2.21328453,684.86,684.08,0.953]
[1752190725115,2.21328453,684.86,684.09,0.89799642]
[1752190725308,0.2541361,684.86,684.1,0.89799642]
[1752190725509,0.2541361,684.86,684.11,0.89799642]
[1752190725810,0.2541361,684.86,684.08,0.953]
[1752190726112,0.2541361,684.86,684.09,1.87533405]
[1752190726312,0.2541361,684.86,684.1,1.87533405]
[1752190726510,0.2541361,684.86,684.11,1.87533405]
[1752190726709,0.2541361,684.86,684.12,1.87533405]
[1752190726911,0.2541361,684.86,684.13,1.87533405]
[1752190727109,0.2541361,684.86,684.14,1.87533405]
[1752190727312,0.2541361,684.86,684.15,1.87533405]
[1752190727512,0.2541361,684.86,684.16,1.87533405]
[1752190727713,0.2541361,684.86,684.17,0.89808782]
[1752190728014,0.2541361,684.86,684.08,0.953]
[1752190728208,0.2541361,684.86,684.09,1.8755601]
[1752190728412,0.2541361,684.86,684.1,1.8755601]
[1752190728624,0.2541361,684.86,684.11,1.8755601]
[1752190728810,0.2541361,684.86,684.12,1.8755601]
[1752190729114,0.2541361,684.86,684.13,1.8755601]
[1752190729311,0.2541361,684.86,684.14,1.8755601]
[1752190729513,0.2541361,684.86,684.15,1.8755601]
[1752190729714,0.2541361,684.86,684.16,1.8755601]
[1752190729917,0.2541361,684.86,684.17,1.8755601]
[1752190730116,0.2541361,684.86,684.18,0.97738031]
[1752190730416,0.2541361,684.86,684.19,0.97738031]
[1752190730717,0.2541361,684.86,684.08,0.953]
[1752190730916,0.2541361,684.86,684.09,1.87596434]
[1752190731117,0.2541361,684.86,684.1,1.87596434]
[1752190731316,0.2541361,684.86,684.11,1.87596434]
[1752190731517,0.2541361,684.86,684.08,0.953]
[1752190731518,0.2541361,684.86,684.12,1.87596434]
[1752190731816,1.95914843,684.77,684.13,0.89847511]
[1752190732118,1.95914843,684.77,684.14,0.89847511]
[1752190732418,1.95914843,684.77,684.15,0.89847511]
[1752190732613,1.95914843,684.77,684.16,0.89847511]
[1752190732815,1.95914843,684.77,684.08,0.953]
[1752190733117,1.95914843,684.77,684.09,0.8985396]
[1752190733318,1.95914843,684.77,684.1,0.8985396]
[1752190733518,1.95914843,684.77,684.11,0.8985396]
[1752190733815,1.95914843,684.77,684.08,0.953]
[1752190733816,1.95914843,684.77,684.12,0.8985396]
[1752190734018,1.95914843,684.77,684.13,0.8985396]
[1752190734218,1.95914843,684.77,684.14,0.8985396]
[1752190734418,1.95914843,684.77,684.15,0.8985396]
[1752190734615,1.95914843,684.77,684.16,0.8985396]
[1752190734922,1.95914843,684.77,684.08,0.953]
[1752190735116,1.95914843,684.77,684.09,0.89867776]
[1752190735316,1.95914843,684.76,684.1,0.89867776]
[1752190735516,1.95914843,684.76,684.11,0.89867776]
[1752190735719,1.95914843,684.79,684.12,0.89867776]
[1752190736021,1.95914843,684.79,684.13,0.89867776]
[1752190736217,1.95914843,684.79,684.14,0.89867776]
[1752190736421,1.95914843,684.79,684.15,0.89867776]
[1752190736620,1.95914843,684.79,684.16,0.89867776]
[1752190736917,1.95914843,684.79,684.17,0.89867776]
[1752190737118,1.95914843,684.74,684.08,0.953]
[1752190737315,1.95914843,684.74,684.09,1.87724289]
[1752190737516,1.95914843,684.74,684.1,0.89884279]
[1752190737718,1.95914843,684.74,684.11,0.89884279]
[1752190737917,1.95914843,684.74,684.12,0.89884279]
[1752190738121,1.95914843,684.73,684.13,0.89884279]
[1752190738322,1.95914843,684.73,684.08,0.953]
[1752190738523,1.95914843,684.73,684.09,1.8773722]
[1752190738721,1.95914843,684.73,684.1,0.89883446]
[1752190739017,1.95914843,684.73,684.11,0.89883446]
[1752190739218,1.95914843,684.73,684.08,0.953]
[1752190739219,1.95914843,684.73,684.12,0.89883446]
[1752190739423,1.95914843,684.73,684.13,0.89883446]
[1752190739624,1.95914843,684.73,684.08,0.953]
[1752190739820,1.95914843,684.73,684.09,1.8774415]
[1752190740121,1.95914843,684.73,684.1,0.89883031]
[1752190740423,1.95914843,684.74,684.11,0.89883031]
[1752190740624,1.95914843,684.72,684.12,0.89883031]
[1752190740843,1.95914843,684.74,684.13,0.89883031]
[1752190741121,1.95914843,684.76,684.08,0.953]
[1752190741320,1.95914843,684.76,684.09,1.87745758]
[1752190741522,1.95914843,684.75,684.1,1.87745758]
[1752190741822,1.95914843,684.75,684.11,0.89883028]
[1752190742021,1.95914843,684.75,684.12,0.89883028]
[1752190742223,1.95914843,684.75,684.13,0.89883028]
[1752190742423,1.95914843,684.75,684.08,0.953]
[1752190742724,1.95914843,684.75,684.09,0.89882203]
[1752190742927,1.95914843,684.75,684.1,0.89882203]
[1752190743122,1.95914843,684.7,683.8,0.98508126]
[1752190743424,1.95914843,684.7,683.81,1.87780262]
[1752190743629,1.95914843,684.7,683.82,1.87780262]
[1752190743824,1.95914843,684.7,683.83,1.87780262]
[1752190744028,1.95914843,684.7,683.84,1.87780262]
[1752190744229,1.95914843,684.7,683.85,1.87780262]
[1752190744425,1.95914843,684.7,683.86,1.87788522]
[1752190744628,1.95914843,684.7,683.87,1.87788522]
[1752190744830,1.95914843,684.7,683.88,1.87788522]
[1752190745030,1.95914843,684.7,683.89,1.87788522]
[1752190745324,1.95914843,684.7,683.9,1.87788522]
[1752190745526,1.95914843,684.7,683.91,1.87788522]
[1752190745727,1.95914843,684.7,683.92,1.87788522]
[1752190745930,1.95914843,684.7,683.93,1.87788522]
[1752190746126,1.95914843,684.7,683.94,1.87788522]
[1752190746329,1.95914843,684.7,683.95,1.87788522]
[1752190746531,1.95914843,684.7,683.96,1.87788522]
[1752190746728,1.95914843,684.7,683.94,1.123]
[1752190746729,1.95914843,684.7,683.97,1.87788522]
[1752190747027,1.95914843,684.7,683.98,1.87788522]
[1752190747331,1.95914843,684.7,683.99,1.87788522]
[1752190747533,1.95914843,684.7,684.0,1.87788522]
[1752190747830,1.95914843,684.7,684.01,1.87788522]
[1752190748129,1.95914843,684.7,684.02,1.87787371]
[1752190748333,1.95914843,684.7,684.03,1.87787371]
[1752190748534,1.95914843,684.7,684.04,1.87787371]
[1752190748734,1.95914843,684.7,684.05,1.87787371]
[1752190748936,1.95914843,684.71,684.06,1.87787371]
[1752190749232,1.95914843,684.71,684.07,1.87787371]
[1752190749432,1.95914843,684.71,684.08,1.87787371]
[1752190749632,1.95914843,684.71,684.09,0.89888445]
[1752190749836,1.95914843,684.69,683.94,1.123]
[1752190750037,0.2541361,684.86,683.95,1.87826439]
[1752190750232,0.2541361,684.86,683.96,1.87826439]
[1752190750533,0.2541361,684.86,683.97,1.87826439]
[1752190750731,0.2541361,684.86,683.98,1.87826439]
[1752190750936,0.2541361,684.86,683.99,1.87826439]
[1752190751136,0.2541361,684.86,684.0,1.87826439]
[1752190751432,0.2541361,684.86,684.01,1.87826439]
[1752190751636,0.2541361,684.86,684.02,1.87826439]
[1752190751833,0.2541361,684.86,684.03,1.87826439]
[1752190752036,0.2541361,684.86,684.04,1.87826439]
[1752190752234,0.2541361,684.86,684.05,1.87826439]
[1752190752439,0.2541361,684.86,684.06,1.87826439]
[1752190752637,0.2541361,684.86,684.07,1.87826439]
[1752190752934,0.2541361,684.86,684.08,1.87826439]
[1752190753132,0.2541361,684.86,684.09,1.87826439]
[1752190753337,0.2541361,684.86,684.1,1.87826439]
[1752190753540,0.2541361,684.86,684.11,0.97938948]
[1752190753738,0.2541361,684.86,684.12,0.97938948]
[1752190753954,0.2541361,684.86,684.13,0.97938948]
[1752190754135,0.2541361,684.86,684.14,0.97938948]
[1752190754440,0.2541361,684.86,684.15,0.97938948]
[1752190754639,0.2541361,684.86,683.94,1.123]
[1752190754941,0.2541361,684.86,683.95,1.8785037]
[1752190755140,0.2541361,684.86,683.96,1.8785037]
[1752190755440,0.2541361,684.86,683.97,1.8785037]
[1752190755739,0.2541361,684.86,683.98,1.8785037]
[1752190755937,0.2541361,684.86,683.99,1.8785037]
[1752190756140,0.2541361,684.86,684.0,1.8785037]
[1752190756340,0.2541361,684.86,684.01,1.8785037]
[1752190756541,0.2541361,684.86,684.02,1.8785037]
[1752190756737,0.2541361,684.86,684.03,1.8785037]
[1752190756941,0.2541361,684.86,684.04,1.8785037]
[1752190757241,0.2541361,684.86,684.05,1.8785037]
[1752190757541,0.2541361,684.86,684.06,1.8785037]
[1752190757742,0.2541361,684.86,684.07,1.8785037]
[1752190758037,0.2541361,684.86,684.08,1.8785037]
[1752190758257,0.2541361,684.86,684.09,0.97949299]
[1752190758542,0.2541361,684.86,684.1,0.97949299]
[1752190758842,0.2541361,684.86,684.11,0.97949299]
[1752190759142,0.2541361,684.86,683.94,1.123]
[1752190759339,0.2541361,684.86,683.95,1.87816162]
[1752190759544,0.2541361,684.86,683.96,0.89879973]
[1752190759742,0.2541361,684.86,683.97,1.87816162]
[1752190759941,1.95914843,684.84,683.98,1.87816162]
[1752190760243,1.95914843,684.84,683.99,1.87816162]
[1752190760539,1.95914843,684.84,684.0,1.87816162]
[1752190760742,1.95914843,684.83,684.01,1.87816162]
[1752190760942,1.95914843,684.83,684.02,1.87816162]
[1752190761141,0.2541361,684.86,684.03,1.87816162]
[1752190761142,1.95914843,684.81,684.03,1.87816162]
[1752190761340,1.95914843,684.79,684.04,1.87816162]
[1752190761538,1.95914843,684.79,684.05,0.97936189]
[1752190761742,1.95914843,684.79,683.73,0.25421036]
[1752190761941,1.95914843,684.79,683.74,1.87828576]
[1752190762139,1.95914843,684.79,683.75,1.87828576]
[1752190762365,1.95914843,684.79,683.76,1.87828576]
[1752190762540,1.95914843,684.81,683.77,1.87828576]
[1752190762838,1.95914843,684.82,683.78,1.87828576]
[1752190763043,1.95914843,684.82,683.79,1.87828576]
[1752190763240,1.95914843,684.82,683.8,1.87828576]
[1752190763440,1.95914843,684.84,683.81,1.87828576]
[1752190763642,1.95914843,684.84,683.82,1.87828576]
[1752190763942,1.95914843,684.76,683.83,1.87828576]
[1752190764139,1.95914843,684.76,683.84,1.87828576]
[1752190764343,1.95914843,684.76,683.85,1.87828576]
[1752190764539,1.95914843,684.82,683.86,1.87828576]
[1752190764844,1.95914843,684.82,683.87,1.87814089]
[1752190765040,1.95914843,684.82,683.88,1.87814089]
[1752190765243,1.95914843,684.82,683.89,1.87814089]
[1752190765445,1.95914843,684.82,683.9,1.87814089]
[1752190765644,1.95914843,684.81,683.91,1.87814089]
[1752190765846,1.95914843,684.79,683.92,1.87814089]
[1752190766043,1.95914843,684.79,683.93,1.87814089]
[1752190766240,0.2541361,684.86,683.94,1.87814089]
[1752190766241,1.95914843,684.8,683.94,1.87814089]
[1752190766442,1.95914843,684.72,683.95,1.87814089]
[1752190766741,1.95914843,684.72,683.96,1.87814089]
[1752190766945,1.95914843,684.72,683.97,1.87814089]
[1752190767143,1.95914843,684.72,683.98,1.87814089]
[1752190767346,1.95914843,684.74,683.99,1.87814089]
[1752190767548,1.95914843,684.74,684.0,1.87814089]
[1752190767747,1.95914843,684.74,684.01,1.87814089]
[1752190767947,1.95914843,684.74,684.02,1.87814089]
[1752190768147,1.95914843,684.74,684.03,1.87794215]
[1752190768345,1.95914843,684.75,684.04,1.87794215]
[1752190768542,1.95914843,684.75,684.05,1.87794215]
[1752190768742,1.95914843,684.75,684.06,1.87794215]
[1752190768943,1.95914843,684.75,684.07,1.87794215]
[1752190769243,1.95914843,684.75,684.08,1.87794215]
[1752190769444,1.95914843,684.75,684.09,1.87794215]
[1752190769649,1.95914843,684.75,683.89,0.911]
[1752190769948,1.95914843,684.75,683.9,1.87789092]
[1752190770142,1.95914843,684.75,683.91,1.87789092]
[1752190770345,1.95914843,684.74,683.92,1.87789092]
[1752190770545,0.2541361,684.86,683.93,1.87789092]
[1752190770745,0.2541361,684.86,683.94,1.87789092]
[1752190770947,0.2541361,684.86,683.95,1.87789092]
[1752190771144,0.2541361,684.86,683.96,1.87789092]
[1752190771349,0.2541361,684.86,683.97,1.87789092]
[1752190771545,0.2541361,684.86,683.98,1.87789092]
[1752190771847,0.2541361,684.86,683.99,1.87789092]
[1752190772048,0.2541361,684.86,684.0,1.87789092]
[1752190772249,0.2541361,684.86,684.01,1.87789092]
[1752190772449,0.2541361,684.86,684.02,1.87789092]
[1752190772650,0.2541361,684.86,684.03,1.87789092]
[1752190772946,0.2541361,684.86,684.04,1.87789092]
[1752190773146,0.2541361,684.86,684.05,1.87789092]
[1752190773347,0.2541361,684.86,684.06,1.87789092]
[1752190773550,0.2541361,684.86,684.07,1.87789092]
[1752190773849,0.2541361,684.86,684.08,1.87789092]
[1752190774046,0.2541361,684.86,684.09,1.87789092]
[1752190774248,0.2541361,684.86,684.1,1.87789092]
[1752190774452,0.2541361,684.86,684.11,1.87789092]
[1752190774652,0.2541361,684.86,684.12,1.87789092]
[1752190774853,0.2541361,684.86,684.13,1.87789092]
[1752190775050,0.2541361,684.86,684.14,1.87789092]
[1752190775249,0.2541361,684.86,684.15,1.87789092]
[1752190775549,0.2541361,684.86,684.16,1.87789092]
[1752190775749,0.2541361,684.86,684.17,1.87789092]
[1752190775955,0.2541361,684.86,684.18,1.87789092]
[1752190776149,0.2541361,684.86,684.19,1.87789092]
[1752190776453,0.2541361,684.86,684.2,1.87789092]
[1752190776650,0.2541361,684.86,684.21,1.87789092]
[1752190776849,0.2541361,684.86,684.22,1.87789092]
[1752190777051,0.2541361,684.86,684.23,1.87789092]
[1752190777250,0.2541361,684.86,684.24,1.87789092]
[1752190777456,0.2541361,684.86,684.25,0.97937554]
[1752190777652,0.2541361,684.86,684.26,0.97937554]
[1752190777854,0.2541361,684.86,684.27,0.97937554]
[1752190778054,0.2541361,684.86,684.28,0.97937554]
[1752190778255,0.2541361,684.86,684.29,0.97937554]
[1752190778452,0.2541361,684.86,684.3,0.97937554]
[1752190778754,0.2541361,684.86,684.31,0.97937554]
[1752190778957,0.2541361,684.86,683.89,0.911]
[1752190779152,0.2541361,684.86,683.9,1.87589936]
[1752190779355,0.2541361,684.86,683.91,1.87589936]
[1752190779655,0.2541361,684.86,683.92,1.87589936]
[1752190779857,0.2541361,684.86,683.93,1.87589936]
[1752190780054,0.2541361,684.86,683.94,1.87589936]
[1752190780357,0.2541361,684.86,683.95,1.87589936]
[1752190780557,0.2541361,684.86,683.96,1.87589936]
[1752190780760,0.2541361,684.86,683.97,1.87589936]